[Event "Early-Titled-Tuesday-Blitz-October-17-2023"]
[Site "Chess.com"]
[Date "2023.10.17"]
[Round "1"]
[White "kingofthenil"]
[Black "ExcitingTrap"]
[Result "1-0"]
[WhiteElo "2718"]
[BlackElo "2418"]
[TimeControl "180+1"]
[EndTime "8:07:02 PDT"]
[Termination "kingofthenil won by resignation"]

1. e4 {[%clk 0:02:47.9]} 1... e5 {[%clk 0:02:59.8]} 2. Nf3 {[%clk 0:02:42.3]}
2... Nc6 {[%clk 0:03:00]} 3. Bc4 {[%clk 0:02:42.5]} 3... Bc5 {[%clk 0:02:58.6]}
4. c3 {[%clk 0:02:33.8]} 4... Nf6 {[%clk 0:02:58.7]} 5. d3 {[%clk 0:02:30]} 5...
O-O {[%clk 0:02:58.3]} 6. a4 {[%clk 0:02:24.1]} 6... a5 {[%clk 0:02:54]} 7. Na3
{[%clk 0:02:22.7]} 7... d5 {[%clk 0:02:48.5]} 8. exd5 {[%clk 0:02:22.5]} 8...
Nxd5 {[%clk 0:02:49.4]} 9. O-O {[%clk 0:02:18.7]} 9... Bg4 {[%clk 0:02:44.6]}
10. h3 {[%clk 0:02:08.4]} 10... Bh5 {[%clk 0:02:42.1]} 11. Nc2 {[%clk
0:02:08.1]} 11... Nb6 {[%clk 0:02:39]} 12. Bb3 {[%clk 0:02:07.5]} 12... Re8
{[%clk 0:02:34.4]} 13. Be3 {[%clk 0:02:02.1]} 13... Bd6 {[%clk 0:02:31.4]} 14.
Bxb6 {[%clk 0:02:00.9]} 14... cxb6 {[%clk 0:02:31.6]} 15. Ne3 {[%clk 0:02:01.5]}
15... e4 {[%clk 0:02:25.8]} 16. dxe4 {[%clk 0:02:01.8]} 16... Rxe4 {[%clk
0:02:09.4]} 17. Nf5 {[%clk 0:01:40.2]} 17... Bc5 {[%clk 0:01:54.8]} 18. Ng3
{[%clk 0:01:09]} 18... Qxd1 {[%clk 0:01:18.8]} 19. Bxd1 {[%clk 0:00:57.4]} 19...
Bxf3 {[%clk 0:01:17.7]} 20. Bxf3 {[%clk 0:00:58.3]} 20... Ree8 {[%clk
0:01:17.1]} 21. Rfd1 {[%clk 0:00:52.7]} 21... Rad8 {[%clk 0:01:15.5]} 22. Bd5
{[%clk 0:00:50.3]} 22... Ne5 {[%clk 0:01:01.2]} 23. Ne4 {[%clk 0:00:45.1]} 23...
Bf8 {[%clk 0:00:40.3]} 24. Bxb7 {[%clk 0:00:43]} 24... Nd3 {[%clk 0:00:34.1]}
25. Rd2 {[%clk 0:00:39.9]} 25... f5 {[%clk 0:00:14.5]} 26. Ng5 {[%clk
0:00:20.5]} 26... Bc5 {[%clk 0:00:14.4]} 27. Kf1 {[%clk 0:00:21.1]} 27... h6
{[%clk 0:00:12.6]} 28. Rad1 {[%clk 0:00:17]} 28... Rb8 {[%clk 0:00:05.4]} 29.
Bd5+ {[%clk 0:00:16.2]} 29... Kh8 {[%clk 0:00:02.8]} 30. Nf7+ {[%clk 0:00:16.6]}
30... Kh7 {[%clk 0:00:03.2]} 31. Rxd3 {[%clk 0:00:17.5]} 1-0

[Event "Early-Titled-Tuesday-Blitz-October-17-2023"]
[Site "Chess.com"]
[Date "2023.10.17"]
[Round "1"]
[White "Budisavljevic"]
[Black "Haykoooo0o"]
[Result "1-0"]
[WhiteElo "2728"]
[BlackElo "2445"]
[TimeControl "180+1"]
[EndTime "8:07:10 PDT"]
[Termination "Budisavljevic won by resignation"]

1. d4 {[%clk 0:03:00.9]} 1... f5 {[%clk 0:02:54.7]} 2. Bf4 {[%clk 0:02:59]} 2...
Nf6 {[%clk 0:02:53.7]} 3. e3 {[%clk 0:02:59.5]} 3... g6 {[%clk 0:02:50.9]} 4. h4
{[%clk 0:02:59.3]} 4... Bg7 {[%clk 0:02:50.2]} 5. h5 {[%clk 0:02:59.4]} 5... d6
{[%clk 0:02:43.2]} 6. h6 {[%clk 0:02:58.2]} 6... Bf8 {[%clk 0:02:43]} 7. Nf3
{[%clk 0:02:57.3]} 7... e6 {[%clk 0:02:37.4]} 8. c4 {[%clk 0:02:57.6]} 8... Be7
{[%clk 0:02:36.6]} 9. Nc3 {[%clk 0:02:57.5]} 9... O-O {[%clk 0:02:36.2]} 10. Qc2
{[%clk 0:02:53.7]} 10... b6 {[%clk 0:02:31.8]} 11. Bd3 {[%clk 0:02:52.8]} 11...
Bb7 {[%clk 0:02:31.4]} 12. O-O-O {[%clk 0:02:52.4]} 12... Nc6 {[%clk 0:02:25.5]}
13. a3 {[%clk 0:02:47.7]} 13... Na5 {[%clk 0:02:25]} 14. Rhe1 {[%clk 0:02:39.5]}
14... a6 {[%clk 0:02:16.5]} 15. e4 {[%clk 0:02:35]} 15... fxe4 {[%clk
0:02:14.8]} 16. Nxe4 {[%clk 0:02:34.5]} 16... Nxe4 {[%clk 0:02:00.3]} 17. Bxe4
{[%clk 0:02:35.4]} 17... Rxf4 {[%clk 0:01:58.5]} 18. Bxb7 {[%clk 0:02:34.6]}
18... Nxb7 {[%clk 0:01:59.4]} 19. Rxe6 {[%clk 0:02:33.8]} 19... Qf8 {[%clk
0:01:53.4]} 20. Rde1 {[%clk 0:02:29.9]} 20... Re8 {[%clk 0:01:42.1]} 21. Kb1
{[%clk 0:02:18.4]} 21... Nd8 {[%clk 0:01:40.5]} 22. R6e3 {[%clk 0:02:15]} 22...
Nf7 {[%clk 0:01:34.4]} 23. Qe2 {[%clk 0:02:08.7]} 23... Nxh6 {[%clk 0:01:11.6]}
24. Rxe7 {[%clk 0:02:06.8]} 24... Rxe7 {[%clk 0:01:11]} 25. Qxe7 {[%clk
0:02:07.7]} 25... Qxe7 {[%clk 0:01:10.6]} 26. Rxe7 {[%clk 0:02:08.5]} 26... Rf7
{[%clk 0:01:11.3]} 27. Re8+ {[%clk 0:02:07.3]} 27... Rf8 {[%clk 0:01:10.4]} 28.
Rxf8+ {[%clk 0:01:59.5]} 28... Kxf8 {[%clk 0:01:11.3]} 29. Ng5 {[%clk
0:01:59.7]} 29... Ke7 {[%clk 0:01:07]} 30. Nxh7 {[%clk 0:01:53]} 30... Ng4
{[%clk 0:00:59.5]} 31. Kc2 {[%clk 0:01:47.5]} 31... Nxf2 {[%clk 0:00:57.1]} 32.
Ng5 {[%clk 0:01:44.1]} 32... Kf6 {[%clk 0:00:56.1]} 33. Nf3 {[%clk 0:01:43.3]}
33... Kf5 {[%clk 0:00:55.3]} 34. d5 {[%clk 0:01:40.8]} 34... Ng4 {[%clk
0:00:48.1]} 35. Kc3 {[%clk 0:01:31.5]} 35... Ne3 {[%clk 0:00:45]} 36. Nd4+
{[%clk 0:01:29.4]} 36... Kf6 {[%clk 0:00:42.7]} 37. Ne6 {[%clk 0:01:30.3]} 37...
c5 {[%clk 0:00:41.1]} 38. g3 {[%clk 0:01:21.2]} 38... Nf1 {[%clk 0:00:28.5]} 39.
Nf8 {[%clk 0:01:15.7]} 39... Nxg3 {[%clk 0:00:24.3]} 40. Nd7+ {[%clk 0:01:15.8]}
40... Kf5 {[%clk 0:00:23.4]} 41. Nxb6 {[%clk 0:01:16.7]} 41... Ne4+ {[%clk
0:00:23.8]} 42. Kd3 {[%clk 0:01:15.8]} 42... g5 {[%clk 0:00:23.8]} 43. b4 {[%clk
0:01:13.9]} 43... g4 {[%clk 0:00:18.1]} 44. Ke3 {[%clk 0:01:11.7]} 44... g3
{[%clk 0:00:11.8]} 45. Kf3 {[%clk 0:01:11.6]} 45... Ke5 {[%clk 0:00:11.5]} 46.
b5 {[%clk 0:01:06.5]} 46... axb5 {[%clk 0:00:10.3]} 47. cxb5 {[%clk 0:01:07.4]}
47... Nc3 {[%clk 0:00:10.8]} 48. a4 {[%clk 0:01:02.2]} 48... Nxd5 {[%clk
0:00:10.3]} 49. Nc4+ {[%clk 0:01:02.2]} 49... Ke6 {[%clk 0:00:09.7]} 50. a5
{[%clk 0:01:02.3]} 50... Nb4 {[%clk 0:00:09.3]} 51. a6 {[%clk 0:01:01.3]} 51...
Nd5 {[%clk 0:00:03.1]} 52. a7 {[%clk 0:01:00.7]} 52... Nc7 {[%clk 0:00:03.1]}
53. b6 {[%clk 0:01:01]} 1-0

[Event "Early-Titled-Tuesday-Blitz-October-17-2023"]
[Site "Chess.com"]
[Date "2023.10.17"]
[Round "1"]
[White "Gyulamiryan-koryun"]
[Black "Zorbos"]
[Result "0-1"]
[WhiteElo "1938"]
[BlackElo "2532"]
[TimeControl "180+1"]
[EndTime "8:07:10 PDT"]
[Termination "Zorbos won on time"]

1. e4 {[%clk 0:01:51.4]} 1... c5 {[%clk 0:02:51.1]} 2. Nf3 {[%clk 0:01:50.8]}
2... d6 {[%clk 0:02:51.3]} 3. d4 {[%clk 0:01:51.3]} 3... cxd4 {[%clk 0:02:52.2]}
4. Nxd4 {[%clk 0:01:51.8]} 4... Nf6 {[%clk 0:02:52.8]} 5. Nc3 {[%clk 0:01:52.3]}
5... a6 {[%clk 0:02:53]} 6. Be3 {[%clk 0:01:52.8]} 6... e5 {[%clk 0:02:53.2]} 7.
Nb3 {[%clk 0:01:52.2]} 7... Be7 {[%clk 0:02:53.7]} 8. a4 {[%clk 0:01:50.6]} 8...
Be6 {[%clk 0:02:52.5]} 9. Qd2 {[%clk 0:01:51]} 9... Ng4 {[%clk 0:02:43.7]} 10.
Be2 {[%clk 0:01:44]} 10... Nxe3 {[%clk 0:02:43.8]} 11. Qxe3 {[%clk 0:01:44.7]}
11... Nd7 {[%clk 0:02:43]} 12. O-O {[%clk 0:01:43.9]} 12... O-O {[%clk
0:02:37.7]} 13. Bd3 {[%clk 0:01:40.9]} 13... Rc8 {[%clk 0:02:34.3]} 14. Rad1
{[%clk 0:01:36.6]} 14... Nc5 {[%clk 0:02:08.1]} 15. Nxc5 {[%clk 0:01:33.6]}
15... dxc5 {[%clk 0:02:01.9]} 16. Nd5 {[%clk 0:01:29.7]} 16... Bxd5 {[%clk
0:02:00.6]} 17. exd5 {[%clk 0:01:30.6]} 17... Qd6 {[%clk 0:01:49.2]} 18. Bf5
{[%clk 0:01:27]} 18... Rb8 {[%clk 0:01:40.5]} 19. Qe4 {[%clk 0:01:24]} 19... g6
{[%clk 0:01:40.6]} 20. Bh3 {[%clk 0:01:21.9]} 20... f5 {[%clk 0:01:40]} 21. Qe2
{[%clk 0:01:18.5]} 21... e4 {[%clk 0:01:23.4]} 22. c4 {[%clk 0:01:17.3]} 22...
Bf6 {[%clk 0:01:23.2]} 23. b3 {[%clk 0:01:16.5]} 23... Be5 {[%clk 0:01:14.9]}
24. g3 {[%clk 0:01:08.8]} 24... g5 {[%clk 0:01:08.6]} 25. Qh5 {[%clk 0:01:07.5]}
25... h6 {[%clk 0:00:55.1]} 26. Bg2 {[%clk 0:00:54.7]} 26... Rf7 {[%clk
0:00:53.7]} 27. Rfe1 {[%clk 0:00:50.4]} 27... Rbf8 {[%clk 0:00:53.5]} 28. h4
{[%clk 0:00:42.9]} 28... Rg7 {[%clk 0:00:44.8]} 29. Kh1 {[%clk 0:00:26.5]} 29...
gxh4 {[%clk 0:00:42.3]} 30. Qxh4 {[%clk 0:00:25.4]} 30... Bf6 {[%clk 0:00:41.4]}
31. Qh3 {[%clk 0:00:20.3]} 31... h5 {[%clk 0:00:39.6]} 32. Re2 {[%clk
0:00:05.6]} 32... Rg5 {[%clk 0:00:39.1]} 33. Qh4 {[%clk 0:00:04.2]} 33... Rf7
{[%clk 0:00:33.6]} 34. Qxe4 {[%clk 0:00:03.9]} 34... fxe4 {[%clk 0:00:33.1]} 35.
Bxe4 {[%clk 0:00:03.6]} 35... Bd4 {[%clk 0:00:30]} 36. Bd3 {[%clk 0:00:03]}
36... Rxf2 {[%clk 0:00:28.1]} 37. Rxf2 {[%clk 0:00:02.6]} 37... Bxf2 {[%clk
0:00:27.7]} 38. Rf1 {[%clk 0:00:02.1]} 38... Qxg3 {[%clk 0:00:27.6]} 0-1

[Event "Early-Titled-Tuesday-Blitz-October-17-2023"]
[Site "Chess.com"]
[Date "2023.10.17"]
[Round "1"]
[White "Khromkin"]
[Black "Firouzja2003"]
[Result "0-1"]
[WhiteElo "2526"]
[BlackElo "3074"]
[TimeControl "180+1"]
[EndTime "8:07:12 PDT"]
[Termination "Firouzja2003 won on time"]

1. d4 {[%clk 0:02:57.4]} 1... Nf6 {[%clk 0:02:58.9]} 2. c4 {[%clk 0:02:56.9]}
2... g6 {[%clk 0:02:59.6]} 3. Nf3 {[%clk 0:02:56.9]} 3... Bg7 {[%clk 0:03:00.2]}
4. Nc3 {[%clk 0:02:57.4]} 4... O-O {[%clk 0:03:00.5]} 5. g3 {[%clk 0:02:57]}
5... d6 {[%clk 0:03:00.8]} 6. Bg2 {[%clk 0:02:57.5]} 6... Nbd7 {[%clk
0:03:01.3]} 7. O-O {[%clk 0:02:58.1]} 7... e5 {[%clk 0:03:01.4]} 8. h3 {[%clk
0:02:58.7]} 8... c6 {[%clk 0:02:59.5]} 9. e4 {[%clk 0:02:59.1]} 9... Re8 {[%clk
0:02:57.2]} 10. Be3 {[%clk 0:02:58.8]} 10... exd4 {[%clk 0:02:56.4]} 11. Nxd4
{[%clk 0:02:58.2]} 11... Nc5 {[%clk 0:02:57.1]} 12. Qc2 {[%clk 0:02:58.3]} 12...
Qe7 {[%clk 0:02:47.7]} 13. Rfe1 {[%clk 0:02:56.5]} 13... Bd7 {[%clk 0:02:43.5]}
14. Rad1 {[%clk 0:02:50]} 14... h5 {[%clk 0:02:19.5]} 15. Bg5 {[%clk 0:02:44.4]}
15... Qf8 {[%clk 0:02:07]} 16. b4 {[%clk 0:02:19.3]} 16... Ne6 {[%clk
0:02:05.8]} 17. Nxe6 {[%clk 0:02:19.6]} 17... Bxe6 {[%clk 0:02:06.7]} 18. Ne2
{[%clk 0:02:17.9]} 18... a5 {[%clk 0:01:59.4]} 19. a3 {[%clk 0:02:10.5]} 19...
axb4 {[%clk 0:01:59.3]} 20. axb4 {[%clk 0:02:11.4]} 20... Nd7 {[%clk 0:01:53.8]}
21. Nf4 {[%clk 0:01:53.1]} 21... Ne5 {[%clk 0:01:47.9]} 22. Nxe6 {[%clk
0:01:53.2]} 22... fxe6 {[%clk 0:01:48.3]} 23. f4 {[%clk 0:01:48.8]} 23... Nf7
{[%clk 0:01:46.8]} 24. Bh4 {[%clk 0:01:46]} 24... e5 {[%clk 0:01:38.6]} 25. c5
{[%clk 0:01:31.4]} 25... dxc5 {[%clk 0:01:38.6]} 26. bxc5 {[%clk 0:01:31.1]}
26... Ra5 {[%clk 0:01:25.6]} 27. Rc1 {[%clk 0:01:21.1]} 27... Ra3 {[%clk
0:01:09.9]} 28. Qb2 {[%clk 0:00:47.6]} 28... Ra7 {[%clk 0:00:50.9]} 29. Qb6
{[%clk 0:00:46.8]} 29... Rea8 {[%clk 0:00:33.5]} 30. Red1 {[%clk 0:00:45.2]}
30... Bh6 {[%clk 0:00:32.5]} 31. Rf1 {[%clk 0:00:20.5]} 31... Qb8 {[%clk
0:00:32.3]} 32. fxe5 {[%clk 0:00:10.3]} 32... Qxe5 {[%clk 0:00:15]} 33. Qb3
{[%clk 0:00:04.6]} 33... Rf8 {[%clk 0:00:11.2]} 34. Rc2 {[%clk 0:00:03.2]} 34...
g5 {[%clk 0:00:10.6]} 0-1

[Event "Early-Titled-Tuesday-Blitz-October-17-2023"]
[Site "Chess.com"]
[Date "2023.10.17"]
[Round "1"]
[White "MMAHDI2013"]
[Black "AvitalBor"]
[Result "0-1"]
[WhiteElo "2479"]
[BlackElo "2820"]
[TimeControl "180+1"]
[EndTime "8:07:12 PDT"]
[Termination "AvitalBor won on time"]

1. c4 {[%clk 0:03:00.1]} 1... c5 {[%clk 0:02:57.1]} 2. Nf3 {[%clk 0:02:59.5]}
2... g6 {[%clk 0:02:57.2]} 3. d4 {[%clk 0:02:56.5]} 3... cxd4 {[%clk 0:02:56]}
4. Nxd4 {[%clk 0:02:57.4]} 4... Nf6 {[%clk 0:02:53.1]} 5. Nc3 {[%clk 0:02:55.7]}
5... Bg7 {[%clk 0:02:53.1]} 6. e4 {[%clk 0:02:55.6]} 6... Nc6 {[%clk 0:02:53]}
7. Nc2 {[%clk 0:02:55.1]} 7... O-O {[%clk 0:02:52.1]} 8. Be2 {[%clk 0:02:55.6]}
8... a5 {[%clk 0:02:44.5]} 9. O-O {[%clk 0:02:54.5]} 9... a4 {[%clk 0:02:40.3]}
10. a3 {[%clk 0:02:41.1]} 10... d6 {[%clk 0:02:38.8]} 11. f3 {[%clk 0:02:36.1]}
11... Nd7 {[%clk 0:02:35.3]} 12. Kh1 {[%clk 0:02:02.1]} 12... Nc5 {[%clk
0:02:33.6]} 13. Nb4 {[%clk 0:01:56.3]} 13... Nb3 {[%clk 0:02:13.1]} 14. Rb1
{[%clk 0:01:54.9]} 14... Nxc1 {[%clk 0:02:13.1]} 15. Rxc1 {[%clk 0:01:50.8]}
15... Qa5 {[%clk 0:02:11.1]} 16. Ncd5 {[%clk 0:01:45.9]} 16... Re8 {[%clk
0:02:02.8]} 17. Rb1 {[%clk 0:01:13.8]} 17... e6 {[%clk 0:01:58.4]} 18. Nxc6
{[%clk 0:00:54]} 18... bxc6 {[%clk 0:01:58.6]} 19. Nb4 {[%clk 0:00:53.7]} 19...
c5 {[%clk 0:01:58]} 20. Nc2 {[%clk 0:00:40]} 20... Rd8 {[%clk 0:01:52.2]} 21. f4
{[%clk 0:00:39]} 21... Rb8 {[%clk 0:01:51.1]} 22. Qc1 {[%clk 0:00:36.2]} 22...
Bb7 {[%clk 0:01:45.5]} 23. Bf3 {[%clk 0:00:33.8]} 23... Ba6 {[%clk 0:01:40.5]}
24. Ne3 {[%clk 0:00:33.2]} 24... Bd4 {[%clk 0:01:40.4]} 25. Nc2 {[%clk
0:00:26.6]} 25... Bg7 {[%clk 0:01:36.8]} 26. Ne3 {[%clk 0:00:27]} 26... Rb3
{[%clk 0:01:36.8]} 27. Bd1 {[%clk 0:00:25.8]} 27... Rb6 {[%clk 0:01:28.1]} 28.
f5 {[%clk 0:00:23]} 28... Bd4 {[%clk 0:01:22.2]} 29. fxe6 {[%clk 0:00:19.9]}
29... fxe6 {[%clk 0:01:21.7]} 30. Rf3 {[%clk 0:00:12.9]} 30... Qe1+ {[%clk
0:01:16.9]} 31. Nf1 {[%clk 0:00:11.5]} 31... Rf8 {[%clk 0:01:05.8]} 32. Bxa4
{[%clk 0:00:09.3]} 32... Qxc1 {[%clk 0:01:03.9]} 33. Rxc1 {[%clk 0:00:10.2]}
33... Rxf3 {[%clk 0:01:03.2]} 34. gxf3 {[%clk 0:00:11.1]} 34... Rxb2 {[%clk
0:01:03.3]} 35. Rc2 {[%clk 0:00:05.5]} 35... Rxc2 {[%clk 0:00:58.2]} 36. Bxc2
{[%clk 0:00:06.4]} 36... Bxc4 {[%clk 0:00:58.6]} 37. Nd2 {[%clk 0:00:06.8]}
37... Be2 {[%clk 0:00:55.9]} 38. Bb3 {[%clk 0:00:06.9]} 38... Kf7 {[%clk
0:00:55.5]} 39. Kg2 {[%clk 0:00:07.1]} 39... Ke7 {[%clk 0:00:55.8]} 40. Nc4
{[%clk 0:00:06.4]} 40... d5 {[%clk 0:00:54.9]} 41. exd5 {[%clk 0:00:06.4]} 41...
exd5 {[%clk 0:00:55.8]} 42. Nb6 {[%clk 0:00:07.1]} 42... c4 {[%clk 0:00:56.2]}
43. Nxd5+ {[%clk 0:00:07.5]} 43... Kd6 {[%clk 0:00:56.1]} 44. Nf4 {[%clk
0:00:04]} 44... cxb3 {[%clk 0:00:55]} 45. Nxe2 {[%clk 0:00:04]} 45... b2 {[%clk
0:00:49.3]} 46. Nc3 {[%clk 0:00:04.1]} 46... Bxc3 {[%clk 0:00:49.1]} 0-1

[Event "Early-Titled-Tuesday-Blitz-October-17-2023"]
[Site "Chess.com"]
[Date "2023.10.17"]
[Round "1"]
[White "BahadirOzen"]
[Black "Fan_Of_Chucky"]
[Result "1/2-1/2"]
[WhiteElo "2797"]
[BlackElo "2477"]
[TimeControl "180+1"]
[EndTime "8:07:12 PDT"]
[Termination "Game drawn - insufficient material"]

1. g3 {[%clk 0:03:00.9]} 1... Nf6 {[%clk 0:02:59.1]} 2. Nf3 {[%clk 0:03:00]}
2... c5 {[%clk 0:02:59.2]} 3. Bg2 {[%clk 0:02:59.2]} 3... Nc6 {[%clk 0:02:56.9]}
4. O-O {[%clk 0:02:59.6]} 4... g6 {[%clk 0:02:57.2]} 5. c4 {[%clk 0:02:53.8]}
5... Bg7 {[%clk 0:02:57.5]} 6. d4 {[%clk 0:02:54.4]} 6... cxd4 {[%clk
0:02:56.3]} 7. Nxd4 {[%clk 0:02:55.3]} 7... O-O {[%clk 0:02:56.6]} 8. Nc3 {[%clk
0:02:55.4]} 8... d6 {[%clk 0:02:56.8]} 9. Nxc6 {[%clk 0:02:53.7]} 9... bxc6
{[%clk 0:02:57.7]} 10. Bxc6 {[%clk 0:02:54.2]} 10... Bh3 {[%clk 0:02:57.5]} 11.
Bxa8 {[%clk 0:02:48.2]} 11... Qxa8 {[%clk 0:02:58.4]} 12. f3 {[%clk 0:02:48.6]}
12... Bxf1 {[%clk 0:02:49.9]} 13. Kxf1 {[%clk 0:02:49.5]} 13... Qc6 {[%clk
0:02:48.4]} 14. Qd3 {[%clk 0:02:26.9]} 14... Nd7 {[%clk 0:02:03.2]} 15. Nd5
{[%clk 0:02:25.2]} 15... Re8 {[%clk 0:01:59.5]} 16. Bg5 {[%clk 0:02:24.4]} 16...
Ne5 {[%clk 0:01:46.1]} 17. Qe4 {[%clk 0:02:20.2]} 17... f6 {[%clk 0:01:38.2]}
18. Bf4 {[%clk 0:02:05.7]} 18... Qxc4 {[%clk 0:01:32.8]} 19. Bxe5 {[%clk
0:02:02.5]} 19... Qxe4 {[%clk 0:01:31.6]} 20. fxe4 {[%clk 0:02:03.4]} 20... fxe5
{[%clk 0:01:12.8]} 21. b4 {[%clk 0:01:43.7]} 21... Kf7 {[%clk 0:01:07.7]} 22.
Rc1 {[%clk 0:01:33.6]} 22... e6 {[%clk 0:00:33.5]} 23. Rc7+ {[%clk 0:01:33.9]}
23... Kf8 {[%clk 0:00:33.4]} 24. Nc3 {[%clk 0:01:24.6]} 24... Re7 {[%clk
0:00:32.7]} 25. Rc8+ {[%clk 0:01:25.1]} 25... Kf7 {[%clk 0:00:28.7]} 26. Rd8
{[%clk 0:01:15]} 26... d5 {[%clk 0:00:08.6]} 27. exd5 {[%clk 0:01:14.6]} 27...
exd5 {[%clk 0:00:08.7]} 28. Nxd5 {[%clk 0:01:15.5]} 28... Rb7 {[%clk 0:00:08.9]}
29. e4 {[%clk 0:01:14.5]} 29... Bf8 {[%clk 0:00:08]} 30. a3 {[%clk 0:01:14.1]}
30... a5 {[%clk 0:00:07.1]} 31. bxa5 {[%clk 0:01:11.8]} 31... Ra7 {[%clk
0:00:07.2]} 32. a4 {[%clk 0:01:07.1]} 32... Rxa5 {[%clk 0:00:07.1]} 33. Rd7+
{[%clk 0:01:07.9]} 33... Ke6 {[%clk 0:00:07.4]} 34. Rxh7 {[%clk 0:01:07.7]}
34... Rxa4 {[%clk 0:00:07.5]} 35. Rh4 {[%clk 0:01:03.7]} 35... Ra2 {[%clk
0:00:03.2]} 36. Rg4 {[%clk 0:01:00.6]} 36... Kf7 {[%clk 0:00:03.6]} 37. h3
{[%clk 0:00:58.1]} 37... Bc5 {[%clk 0:00:04.1]} 38. Ke1 {[%clk 0:00:58.7]} 38...
Bf2+ {[%clk 0:00:04.1]} 39. Kd1 {[%clk 0:00:59.3]} 39... Ra3 {[%clk 0:00:04.4]}
40. Ke2 {[%clk 0:00:50.6]} 40... Bxg3 {[%clk 0:00:04.3]} 41. Rg5 {[%clk
0:00:51.1]} 41... Bf4 {[%clk 0:00:04.1]} 42. Rg4 {[%clk 0:00:48.2]} 42... Rxh3
{[%clk 0:00:04.4]} 43. Nxf4 {[%clk 0:00:48.9]} 43... exf4 {[%clk 0:00:04.8]} 44.
Rxf4+ {[%clk 0:00:49.8]} 44... Ke6 {[%clk 0:00:05.2]} 45. Rg4 {[%clk 0:00:50.4]}
45... Ke5 {[%clk 0:00:05.2]} 46. Rxg6 {[%clk 0:00:50.6]} 46... Kxe4 {[%clk
0:00:05.3]} 47. Kf2 {[%clk 0:00:51.2]} 47... Kf5 {[%clk 0:00:05.4]} 48. Rg3
{[%clk 0:00:50.7]} 48... Rxg3 {[%clk 0:00:05.6]} 49. Kxg3 {[%clk 0:00:51.6]}
1/2-1/2

[Event "Early-Titled-Tuesday-Blitz-October-17-2023"]
[Site "Chess.com"]
[Date "2023.10.17"]
[Round "1"]
[White "Fh2411"]
[Black "GMJustin"]
[Result "1-0"]
[WhiteElo "2555"]
[BlackElo "2165"]
[TimeControl "180+1"]
[EndTime "8:07:13 PDT"]
[Termination "Fh2411 won on time"]

1. d4 {[%clk 0:02:41.6]} 1... Nf6 {[%clk 0:02:58.9]} 2. Nf3 {[%clk 0:02:40.9]}
2... e6 {[%clk 0:02:54.7]} 3. Bf4 {[%clk 0:02:40]} 3... c5 {[%clk 0:02:49.5]} 4.
e3 {[%clk 0:02:40.3]} 4... b6 {[%clk 0:02:41.7]} 5. Nbd2 {[%clk 0:02:37]} 5...
Bb7 {[%clk 0:02:35.5]} 6. Nc4 {[%clk 0:02:36.1]} 6... d5 {[%clk 0:02:28.4]} 7.
Nce5 {[%clk 0:02:33.5]} 7... Be7 {[%clk 0:02:22.6]} 8. Bb5+ {[%clk 0:02:21.1]}
8... Kf8 {[%clk 0:01:47.6]} 9. c3 {[%clk 0:02:19.1]} 9... Ne4 {[%clk 0:01:34.2]}
10. Nxf7 {[%clk 0:01:17.5]} 10... Kxf7 {[%clk 0:01:29.5]} 11. Ne5+ {[%clk
0:01:17.8]} 11... Kg8 {[%clk 0:01:23.9]} 12. Qh5 {[%clk 0:01:11.6]} 12... Qf8
{[%clk 0:01:09.9]} 13. f3 {[%clk 0:01:09.4]} 13... Nd6 {[%clk 0:01:03.6]} 14.
Bd3 {[%clk 0:01:04]} 14... Qe8 {[%clk 0:01:01.9]} 15. Qh3 {[%clk 0:00:59.2]}
15... Bf8 {[%clk 0:00:51.5]} 16. O-O {[%clk 0:00:34.2]} 16... Nd7 {[%clk
0:00:49.3]} 17. Ng4 {[%clk 0:00:25.3]} 17... Qf7 {[%clk 0:00:44.8]} 18. Rae1
{[%clk 0:00:20.6]} 18... cxd4 {[%clk 0:00:35.6]} 19. cxd4 {[%clk 0:00:19.2]}
19... h5 {[%clk 0:00:31.5]} 20. Nf2 {[%clk 0:00:13.2]} 20... Be7 {[%clk
0:00:29.6]} 21. Rc1 {[%clk 0:00:08.7]} 21... Rc8 {[%clk 0:00:14.8]} 22. Rxc8+
{[%clk 0:00:08.1]} 22... Nxc8 {[%clk 0:00:12]} 23. Rc1 {[%clk 0:00:09]} 23... g5
{[%clk 0:00:10.8]} 24. Rc7 {[%clk 0:00:05.6]} 24... gxf4 {[%clk 0:00:06.9]} 25.
Rxb7 {[%clk 0:00:05.6]} 25... fxe3 {[%clk 0:00:06.4]} 26. Qg3+ {[%clk
0:00:06.1]} 26... Qg7 {[%clk 0:00:04.2]} 27. Nd1 {[%clk 0:00:06]} 27... Qxg3
{[%clk 0:00:03.2]} 28. hxg3 {[%clk 0:00:06.9]} 28... Nf6 {[%clk 0:00:01.9]} 29.
Nxe3 {[%clk 0:00:07.1]} 29... Nd6 {[%clk 0:00:01.7]} 30. Rxe7 {[%clk 0:00:07.3]}
30... Kf8 {[%clk 0:00:01.1]} 31. Rxa7 {[%clk 0:00:07]} 1-0